bitfinex/quotes_BTCUSD_20251016
["timestamp","ask_amount","ask_price","bid_price","bid_amount"]
[1760634763905,0.04467779,108640.0,108630.0,1.32954935]
[1760634764523,0.01993095,108640.0,108630.0,0.56180985]
[1760634764728,0.01993095,108640.0,108630.0,1.32954935]
[1760634765381,0.01993095,108640.0,108630.0,1.32056239]
[1760634765592,0.04470976,108640.0,108630.0,0.44915451]
[1760634765828,0.03713904,108640.0,108630.0,0.54415451]
[1760634766034,0.22123329,108640.0,108630.0,0.6201112]
[1760634766240,0.03713904,108640.0,108630.0,0.5251112]
[1760634766447,0.03713904,108640.0,108630.0,0.6201112]
[1760634766652,0.03713904,108640.0,108630.0,0.2801112]
[1760634767815,0.29787731,108640.0,108630.0,0.001]
[1760634768066,0.30787731,108640.0,108630.0,0.1851112]
[1760634768263,0.03713904,108640.0,108630.0,0.1851112]
[1760634768633,0.10291211,108640.0,108630.0,0.1851112]
[1760634768842,0.03713904,108640.0,108630.0,0.1851112]
[1760634769444,0.03713904,108640.0,108630.0,0.1391112]
[1760634769638,0.08670783,108640.0,108630.0,0.15125752]
[1760634769849,0.08670783,108640.0,108630.0,0.1391112]
[1760634770052,0.08670783,108640.0,108630.0,0.15752232]
[1760634770424,0.08670783,108640.0,108630.0,0.1391112]
[1760634771022,0.30445794,108640.0,108630.0,0.1391112]
[1760634771199,0.1841112,108630.0,108620.0,0.095]
[1760634771407,0.06935635,108630.0,108620.0,0.27912815]
[1760634772379,0.06935635,108630.0,108620.0,0.28012815]
[1760634772608,0.01978046,108630.0,108620.0,0.28012815]
[1760634773099,0.06935635,108630.0,108620.0,0.28012815]
[1760634773509,0.01978046,108630.0,108620.0,0.28012815]
[1760634773881,0.01978046,108630.0,108620.0,0.18512815]
[1760634774088,0.01978046,108630.0,108620.0,0.28012815]
[1760634774302,0.04456988,108630.0,108620.0,0.18512815]
[1760634774714,0.04456925,108630.0,108620.0,0.18512815]
[1760634774912,0.04456925,108630.0,108620.0,0.28012815]
[1760634775541,0.04456925,108630.0,108620.0,0.001]
[1760634775542,1.04424624,108630.0,108620.0,0.001]
[1760634775753,0.18418235,108590.0,108570.0,0.28839623]
[1760634775959,0.18418235,108590.0,108570.0,1.13664167]
[1760634775960,0.02480178,108580.0,108570.0,1.13664167]
[1760634776214,0.01978046,108580.0,108570.0,1.13664167]
[1760634776415,0.01978046,108580.0,108570.0,1.16581796]
[1760634776620,0.04458224,108580.0,108570.0,1.16581796]
[1760634776997,0.04458224,108580.0,108570.0,0.39822865]
[1760634777196,0.04458224,108580.0,108570.0,0.30322865]
[1760634777400,0.04458224,108580.0,108570.0,0.30853853]
[1760634777612,0.04458224,108580.0,108570.0,0.26253853]
[1760634777786,0.04458224,108580.0,108570.0,0.16753853]
[1760634777987,0.04458224,108580.0,108570.0,0.26453853]
[1760634778413,0.01978046,108580.0,108570.0,1.03227803]
[1760634778592,0.01978046,108580.0,108570.0,1.12196815]
[1760634778796,0.01978046,108580.0,108570.0,1.11996815]
[1760634779000,0.01978046,108580.0,108570.0,1.12096815]
[1760634779820,0.01978046,108580.0,108570.0,0.35322865]
[1760634780029,0.01978046,108580.0,108570.0,1.12096815]
[1760634780259,0.18416266,108600.0,108580.0,0.18418096]
[1760634780611,0.18416266,108600.0,108590.0,0.18417902]
[1760634780814,0.53331676,108630.0,108610.0,0.18413019]
[1760634781055,0.18412815,108620.0,108600.0,0.18413405]
[1760634781309,0.25951529,108650.0,108620.0,0.18412815]
[1760634781627,0.25951529,108650.0,108620.0,0.27912815]
[1760634781628,0.18409537,108640.0,108620.0,0.27912815]
[1760634781832,0.31409537,108640.0,108620.0,0.18412815]
[1760634782032,0.31409537,108640.0,108630.0,0.1841112]
[1760634782033,0.3428976,108640.0,108630.0,0.1841112]
[1760634782242,0.15880223,108640.0,108630.0,0.17811844]
[1760634782639,0.34289648,108640.0,108630.0,0.17811844]
[1760634782885,0.31424474,108640.0,108630.0,0.17811844]
[1760634783089,0.31424474,108640.0,108630.0,0.1841112]
[1760634783243,0.13015049,108640.0,108630.0,0.1841112]
[1760634783837,0.00015049,108640.0,108630.0,0.1841112]
[1760634784037,0.00015049,108640.0,108630.0,0.9518507]
[1760634784245,0.00015049,108640.0,108630.0,1.04154082]
[1760634784895,0.00015049,108640.0,108630.0,1.38154082]
[1760634785118,1e-08,108640.0,108630.0,1.4177231]
[1760634785321,1e-08,108640.0,108630.0,1.3717231]
[1760634785517,1e-08,108640.0,108630.0,1.3727231]
[1760634785942,1e-08,108640.0,108630.0,5.3435791]
[1760634786377,1e-08,108640.0,108630.0,5.3425791]
[1760634787683,1e-08,108640.0,108630.0,5.3445791]
[1760634787885,1e-08,108640.0,108630.0,5.3425791]
[1760634788302,1e-08,108640.0,108630.0,5.3445791]
[1760634788509,1e-08,108640.0,108630.0,5.3425791]
[1760634788719,0.0002,108720.0,108660.0,0.00920301]
[1760634788925,0.08361298,108740.0,108730.0,0.18394187]
[1760634788926,0.01839673,108740.0,108730.0,0.18394187]
[1760634789142,0.08889908,108740.0,108730.0,1.04668137]
[1760634789344,0.00050235,108740.0,108730.0,1.04668137]
[1760634789555,0.00050235,108740.0,108730.0,1.38668137]
[1760634789970,0.00050235,108740.0,108730.0,1.47637149]
[1760634790191,0.00050235,108740.0,108730.0,0.70863199]
[1760634790391,0.00050235,108740.0,108730.0,1.50424256]
[1760634791249,0.00050235,108740.0,108730.0,1.50420256]
[1760634791688,0.00050235,108740.0,108730.0,1.50720256]
[1760634792340,0.00050235,108740.0,108730.0,0.21181294]
[1760634792547,0.00050235,108740.0,108730.0,1.04664137]
[1760634792766,0.02013733,108740.0,108730.0,0.18694187]
[1760634792948,0.02013733,108740.0,108730.0,0.28190187]
[1760634793182,0.02013733,108740.0,108730.0,0.14094187]
[1760634793389,0.20406228,108740.0,108730.0,0.22692206]
[1760634793596,0.02013733,108740.0,108730.0,0.22692206]
[1760634793810,0.20406228,108740.0,108730.0,0.003]
[1760634794046,0.18395006,108730.0,108720.0,0.18395879]
[1760634794253,0.18397571,108710.0,108690.0,0.78613623]
[1760634794460,0.18399264,108700.0,108690.0,0.01839673]
[1760634794678,0.01963498,108700.0,108690.0,0.97014579]
[1760634794899,0.01963498,108700.0,108690.0,0.95174906]
[1760634795163,0.01963498,108700.0,108690.0,1.04143918]
[1760634795369,0.01963498,108700.0,108690.0,1.04343918]
[1760634795804,0.02013702,108700.0,108690.0,1.04143918]
[1760634796010,0.02013702,108700.0,108690.0,1.13835918]
[1760634796224,0.02013702,108700.0,108690.0,1.04866906]
[1760634796440,0.02013702,108700.0,108690.0,0.18600956]
[1760634796650,0.02013702,108700.0,108690.0,0.28092956]
[1760634796868,0.20412966,108700.0,108690.0,0.28092956]
[1760634797091,0.22115827,108700.0,108690.0,0.28092956]
[1760634797302,0.03716563,108700.0,108690.0,0.18400956]
[1760634797519,0.02013702,108700.0,108690.0,0.18600956]
[1760634797741,0.20412966,108700.0,108690.0,0.18600956]
[1760634797908,0.22115658,108700.0,108690.0,0.18600956]
[1760634798124,0.03716394,108700.0,108690.0,0.18600956]
[1760634798323,0.02013702,108700.0,108690.0,0.95374906]
[1760634798642,0.03716316,108700.0,108690.0,0.95374906]
[1760634799265,0.02013702,108700.0,108690.0,0.95374906]
[1760634800034,0.00171702,108700.0,108690.0,0.95374906]
[1760634800819,0.00171702,108700.0,108690.0,0.90774906]
[1760634801016,0.00171702,108700.0,108690.0,0.99743918]
[1760634801702,0.00171702,108700.0,108690.0,0.22969968]
[1760634802010,0.00171702,108700.0,108690.0,1.33743918]
[1760634802445,0.04902785,108740.0,108730.0,0.18394187]
[1760634802652,0.01859673,108750.0,108740.0,0.17195154]
[1760634802901,0.33967216,108750.0,108740.0,0.19034403]
[1760634803111,0.13797461,108750.0,108740.0,0.19034403]
[1760634803322,0.13797461,108750.0,108740.0,0.93969104]
[1760634803323,0.12095782,108750.0,108740.0,0.93969104]
[1760634803545,0.24239084,108770.0,108740.0,0.93071235]
[1760634803546,0.04922785,108770.0,108740.0,0.93071235]
[1760634803763,0.06537374,108780.0,108740.0,0.93071235]
[1760634803764,0.07399094,108800.0,108770.0,0.52387423]
[1760634803977,0.04354713,108800.0,108790.0,0.95157992]
[1760634804175,0.0251504,108800.0,108790.0,0.18384042]
[1760634804393,0.0251504,108800.0,108780.0,1.04650196]
[1760634804616,0.0251504,108800.0,108790.0,0.27876042]
[1760634805061,0.20897392,108800.0,108790.0,0.27876042]
[1760634805276,0.0251504,108800.0,108790.0,1.04649992]
[1760634805911,0.0251504,108800.0,108790.0,0.27876042]
[1760634806136,0.0251504,108800.0,108790.0,1.04649992]
[1760634806358,0.0251504,108800.0,108790.0,0.09492]
[1760634806573,0.20897443,108800.0,108790.0,0.27876042]
[1760634806996,0.0251504,108800.0,108790.0,0.27876042]
[1760634807217,0.0251504,108800.0,108790.0,0.95357992]
[1760634807436,0.0251504,108800.0,108790.0,1.13819004]
[1760634808091,0.0251504,108800.0,108790.0,1.47819004]
[1760634808513,0.0251504,108800.0,108790.0,1.43119004]
[1760634808721,0.0251504,108800.0,108790.0,1.43419004]
[1760634809360,0.0251504,108800.0,108790.0,1.33927004]
[1760634809566,0.0251504,108800.0,108790.0,1.43415004]
[1760634810629,0.0251504,108800.0,108790.0,1.43115004]
[1760634810831,0.0251504,108800.0,108790.0,1.43415004]
[1760634812508,0.0251504,108800.0,108790.0,1.33927004]
[1760634812706,0.0251504,108800.0,108790.0,1.43415004]
[1760634813474,0.0002,108820.0,108810.0,0.21998891]
[1760634813475,1e-08,108820.0,108810.0,0.21998891]
[1760634813688,0.00050124,108820.0,108810.0,5.1371735]
[1760634813886,0.00050124,108820.0,108810.0,5.0422935]
[1760634814103,0.00050124,108820.0,108810.0,5.16555257]
[1760634814332,0.0252,108840.0,108830.0,0.18377285]
[1760634814545,0.02535028,108840.0,108830.0,1.47608247]
[1760634815389,0.02535028,108840.0,108830.0,0.61646297]
[1760634815601,0.03081045,108840.0,108830.0,0.61646297]
[1760634815810,0.03081045,108840.0,108830.0,1.47904247]
[1760634816226,0.03081045,108840.0,108830.0,1.43404247]
[1760634817440,0.03081045,108840.0,108830.0,1.33920247]
[1760634817639,0.03081045,108840.0,108830.0,1.09404247]
[1760634818305,0.03081045,108840.0,108830.0,0.32630297]
[1760634818522,0.03081045,108840.0,108830.0,0.23661285]
[1760634819153,0.03081045,108840.0,108830.0,1.00383552]
[1760634819981,0.01239045,108840.0,108830.0,0.23609602]
[1760634820401,0.19614642,108840.0,108820.0,0.18378963]
[1760634820611,0.02649604,108840.0,108830.0,0.28161285]
[1760634820821,0.21025201,108840.0,108830.0,0.28161285]
[1760634821026,0.19068625,108840.0,108830.0,0.18377285]
[1760634821239,0.21571218,108840.0,108830.0,0.18677285]
[1760634821449,0.19614642,108840.0,108830.0,0.003]
[1760634821656,0.21571218,108840.0,108830.0,0.09784]
[1760634821838,0.55571218,108840.0,108830.0,0.003]
[1760634822070,0.18378974,108820.0,108800.0,0.67845958]
[1760634822277,0.1837909,108820.0,108810.0,0.27864663]
[1760634822910,0.01956576,108830.0,108820.0,0.18378974]
[1760634823121,0.01956576,108830.0,108810.0,0.77328269]
[1760634823122,0.18377285,108830.0,108810.0,0.77328269]
[1760634823526,0.20333861,108830.0,108820.0,0.18378974]
[1760634823937,0.20333861,108830.0,108820.0,0.13878974]
[1760634824137,0.20333861,108830.0,108820.0,0.15716871]
[1760634824341,0.01956576,108830.0,108820.0,0.13878974]
[1760634824559,0.01956576,108830.0,108820.0,0.15716871]
[1760634824771,0.36649604,108840.0,108830.0,0.18377285]
[1760634824976,0.55025201,108840.0,108820.0,0.6364258]
[1760634825180,0.18377285,108830.0,108820.0,0.14178974]
[1760634825387,0.01956576,108830.0,108820.0,0.23658974]
[1760634825601,0.20333861,108830.0,108820.0,0.23658974]
[1760634825813,0.26563626,108830.0,108820.0,0.0978]
[1760634826035,0.27563626,108830.0,108820.0,0.003]
[1760634826259,0.21333861,108830.0,108820.0,0.003]
[1760634826479,0.21333861,108830.0,108820.0,0.18678974]
[1760634826685,0.21333861,108830.0,108820.0,0.003]
[1760634827113,1.04797467,108830.0,108820.0,0.003]
[1760634827332,0.18382352,108800.0,108790.0,0.01839673]
[1760634827554,0.18382352,108800.0,108790.0,0.20223715]
[1760634827555,0.20338928,108800.0,108790.0,0.20223715]
[1760634827774,0.20338928,108800.0,108790.0,0.18384042]
[1760634827986,0.21338928,108800.0,108790.0,0.18384042]
[1760634828399,0.18384042,108790.0,108770.0,0.51303279]
[1760634828627,0.01956576,108790.0,108780.0,0.27865732]
[1760634828839,0.01956576,108790.0,108780.0,0.27267351]
[1760634829046,0.20340618,108790.0,108780.0,0.27267351]
[1760634829306,0.01956576,108790.0,108780.0,0.17787351]
[1760634829731,0.18385732,108780.0,108770.0,0.00050123]
[1760634829951,0.8104992,108780.0,108770.0,0.00050123]
[1760634830163,1.12130774,108780.0,108770.0,0.00050123]
[1760634830374,0.18389628,108760.0,108740.0,0.3063153]
[1760634830592,0.18389628,108760.0,108740.0,0.19349335]
[1760634830593,0.26593634,108750.0,108740.0,0.19349335]
[1760634830792,0.10159737,108750.0,108740.0,0.19349247]
[1760634831013,0.06878623,108750.0,108740.0,0.18407447]
[1760634831236,0.25269427,108750.0,108740.0,0.0001504]
[1760634831447,0.26980003,108750.0,108740.0,0.18407535]
[1760634831660,0.22057956,108750.0,108730.0,0.18394127]
[1760634831864,0.03667152,108750.0,108740.0,0.18392495]
[1760634832069,0.08593326,108750.0,108740.0,0.18392495]
[1760634832284,0.03667139,108750.0,108730.0,0.18409187]
[1760634832466,0.04929288,108740.0,108730.0,0.18409187]
[1760634832695,0.06885864,108740.0,108730.0,0.18409187]
[1760634833362,0.25278359,108740.0,108730.0,0.0001506]
[1760634833564,0.24405152,108740.0,108730.0,0.0001506]
[1760634833786,0.24405152,108740.0,108730.0,0.18409247]
[1760634833787,0.28622604,108740.0,108730.0,0.18409247]
[1760634834143,0.28622604,108740.0,108730.0,0.0001506]
[1760634834356,0.28626924,108740.0,108730.0,0.0001506]
[1760634834574,0.18395576,108730.0,108710.0,0.31603576]
[1760634834852,0.29645453,108730.0,108700.0,0.18392788]
[1760634835101,0.24962894,108720.0,108710.0,0.18397571]
[1760634835314,0.06582033,108730.0,108720.0,0.18395879]
[1760634835527,0.28652561,108730.0,108720.0,0.18395879]
[1760634835736,0.28652561,108730.0,108710.0,0.18397571]
[1760634835737,0.28652594,108730.0,108710.0,0.18397571]
[1760634835943,0.2331597,108720.0,108710.0,0.18397571]
[1760634836146,0.0328006,108720.0,108710.0,0.18397571]
[1760634836567,0.22675939,108720.0,108700.0,0.09484]
[1760634836770,0.03277413,108710.0,108700.0,0.18399264]
[1760634837111,0.21674984,108710.0,108700.0,0.18399264]
[1760634837331,0.18397571,108710.0,108700.0,0.18399264]
[1760634837544,0.21674984,108710.0,108700.0,0.18399264]
[1760634837774,0.03277413,108710.0,108700.0,0.18399264]
[1760634837981,0.31157292,108720.0,108710.0,0.18397571]
[1760634838210,0.32157292,108720.0,108710.0,0.18397571]
[1760634838431,0.32157292,108720.0,108700.0,0.18399264]
[1760634838651,0.32157292,108720.0,108700.0,0.212811]
[1760634839008,0.32151442,108720.0,108710.0,0.18397571]
[1760634839443,0.32151442,108720.0,108710.0,0.13797571]
[1760634839653,0.32151442,108720.0,108700.0,0.18399264]
[1760634839867,0.18397571,108710.0,108680.0,0.68775331]
[1760634840071,0.22669134,108710.0,108690.0,0.18400956]
[1760634840273,0.21849725,108710.0,108700.0,0.18399264]
[1760634841160,0.20849725,108710.0,108700.0,0.18399264]
[1760634842024,0.20849725,108710.0,108690.0,0.18400956]
[1760634842184,0.21849725,108710.0,108700.0,0.18399264]
[1760634842390,0.21849725,108710.0,108680.0,0.21186809]
[1760634842391,0.18399264,108700.0,108680.0,0.21186809]
[1760634842732,0.25041166,108710.0,108690.0,0.18400956]
[1760634842933,0.25769603,108710.0,108700.0,0.18399264]
[1760634843058,0.06452154,108710.0,108700.0,0.18399264]
[1760634843463,0.02452154,108710.0,108700.0,0.18399264]
[1760634843726,0.05723717,108720.0,108710.0,0.18397571]
[1760634843929,0.30336033,108720.0,108710.0,0.18397571]
[1760634844149,0.18397571,108710.0,108700.0,0.18399264]
[1760634844357,0.33607596,108720.0,108700.0,0.18399264]
[1760634844586,0.31336033,108720.0,108700.0,0.18461968]
[1760634844796,0.12940154,108720.0,108710.0,0.18397571]
[1760634845000,0.02452154,108720.0,108710.0,0.18397571]
[1760634845208,0.02452154,108730.0,108720.0,0.18395879]
[1760634845412,0.20846341,108730.0,108710.0,0.18397571]
[1760634845563,0.18395879,108720.0,108710.0,0.18397571]
[1760634846185,0.18399264,108700.0,108690.0,0.01839673]
[1760634846399,0.18400956,108690.0,108670.0,0.01839673]
[1760634846607,0.02449082,108690.0,108680.0,0.49463606]
[1760634846815,0.02449082,108700.0,108690.0,0.18400956]
[1760634847231,0.02449082,108700.0,108690.0,0.63264562]
[1760634847442,0.02449082,108700.0,108690.0,0.13800956]
[1760634847657,0.02449082,108700.0,108690.0,0.13815974]
[1760634847985,0.26073443,108700.0,108690.0,0.13815974]
[1760634848185,0.04409009,108700.0,108690.0,0.13815974]
[1760634848437,0.26073443,108700.0,108690.0,0.00015018]
[1760634848641,0.05225097,108700.0,108690.0,0.18415974]
[1760634848863,0.07676114,108700.0,108690.0,0.18415974]
[1760634849269,0.23624361,108700.0,108690.0,0.18415974]
[1760634849469,0.05225097,108700.0,108690.0,0.18415974]
[1760634850085,0.04411964,108700.0,108690.0,0.6787958]
[1760634850291,0.01959927,108700.0,108690.0,1.10848592]
[1760634850466,0.01959927,108700.0,108690.0,1.10911302]
[1760634851874,0.02452037,108720.0,108710.0,0.52397571]
[1760634852085,0.05717207,108730.0,108720.0,0.18395879]
[1760634852265,0.02452037,108730.0,108720.0,0.76828497]
[1760634852958,0.18395879,108720.0,108710.0,0.18397094]
[1760634853170,0.21671514,108720.0,108700.0,0.28805709]
[1760634853387,0.18395923,108720.0,108710.0,0.18397571]
[1760634853591,0.25841504,108730.0,108710.0,0.18397571]
[1760634853804,0.35327791,108740.0,108720.0,0.18395879]
[1760634853995,0.18394187,108730.0,108710.0,0.19317449]
[1760634854221,0.03278034,108720.0,108710.0,0.19317449]
[1760634854431,0.18394187,108730.0,108710.0,0.19317449]
[1760634854827,0.27630965,108730.0,108710.0,0.19317449]
[1760634855030,0.18395879,108720.0,108710.0,0.19317449]
[1760634855271,0.18394187,108730.0,108710.0,0.14717449]
[1760634855458,0.02711345,108730.0,108720.0,0.18395879]
[1760634855694,0.01,108730.0,108720.0,0.18395879]
[1760634856150,0.23321673,108730.0,108720.0,0.18395879]
[1760634856348,0.18394187,108730.0,108720.0,0.18395879]
[1760634856533,0.01713563,108730.0,108720.0,0.16899089]
[1760634856780,0.35328069,108740.0,108720.0,0.18039643]
[1760634857017,0.18394187,108730.0,108720.0,0.16899089]
[1760634857254,0.20107974,108730.0,108720.0,0.01839587]
[1760634857462,0.26635582,108730.0,108720.0,0.18395879]
[1760634857707,0.18395879,108720.0,108710.0,0.18397571]
[1760634857936,0.01713787,108720.0,108710.0,0.18397571]
[1760634858137,0.09947067,108720.0,108710.0,0.18397571]
[1760634858354,0.06653755,108720.0,108710.0,0.18397571]
[1760634859056,0.06653755,108720.0,108710.0,0.17200065]
[1760634859057,0.05010844,108720.0,108710.0,0.17200065]
[1760634859302,0.06653755,108720.0,108710.0,0.17200065]
[1760634860041,0.06653755,108720.0,108710.0,0.18482728]
[1760634860374,0.06653755,108720.0,108710.0,0.19039822]
[1760634861057,0.05016354,108720.0,108710.0,0.68503428]
[1760634861265,0.05016354,108720.0,108710.0,0.75033983]
[1760634861440,0.02477576,108720.0,108710.0,1.09033983]
[1760634861640,0.05780143,108730.0,108720.0,0.18395879]
[1760634861848,0.05023245,108730.0,108720.0,0.36852891]
[1760634862066,0.01720678,108730.0,108720.0,0.86316497]
[1760634862666,0.01720678,108730.0,108720.0,0.8637724]
[1760634862869,0.01720678,108730.0,108720.0,0.36015679]
[1760634863073,0.04198026,108730.0,108720.0,0.36015679]
[1760634863674,0.09482765,108730.0,108720.0,0.26527679]
[1760634863881,0.07005417,108730.0,108720.0,0.36015679]
[1760634864325,0.06180649,108730.0,108720.0,0.36015679]
[1760634864555,0.06180649,108730.0,108720.0,0.18456622]
[1760634864774,0.06180649,108730.0,108720.0,0.27944622]
[1760634865148,0.06180649,108730.0,108720.0,0.26747222]
[1760634866180,0.0370285,108730.0,108720.0,0.76210828]
[1760634866593,0.0370285,108730.0,108720.0,0.25250571]
[1760634866827,0.24574836,108730.0,108720.0,0.25250571]
[1760634867064,0.06180649,108730.0,108720.0,0.76828497]
[1760634867323,0.0370285,108730.0,108720.0,0.70848891]
[1760634867494,0.02637947,108750.0,108730.0,0.18392658]
[1760634867703,0.29032344,108750.0,108730.0,0.18392658]
[1760634868109,0.10641383,108750.0,108740.0,0.18392495]
[1760634868318,0.06338816,108750.0,108740.0,0.16297351]
[1760634868513,0.2472962,108750.0,108740.0,0.16297351]
[1760634869168,0.25554388,108750.0,108740.0,0.18392495]
[1760634869374,0.09533408,108750.0,108730.0,0.18392658]
[1760634869579,0.09533408,108750.0,108740.0,0.18392495]
[1760634870408,0.09533408,108750.0,108730.0,0.18392658]
[1760634870611,0.09533408,108750.0,108710.0,0.01839673]
[1760634870612,0.18394187,108730.0,108710.0,0.01839673]
[1760634870819,0.67859485,108720.0,108710.0,0.00015018]
[1760634871036,0.78343485,108720.0,108710.0,0.00015018]
[1760634871246,0.18399264,108700.0,108690.0,0.01839673]
[1760634871451,0.36151541,108700.0,108690.0,0.01839673]
[1760634871755,0.33850242,108700.0,108680.0,0.18402605]
[1760634871988,0.24178379,108690.0,108680.0,0.18402605]
[1760634872217,0.22622412,108690.0,108680.0,0.18402649]
[1760634872398,0.22622412,108690.0,108680.0,0.18564849]
[1760634872629,0.22622412,108690.0,108680.0,0.001622]
[1760634872835,0.22622412,108690.0,108680.0,0.18564849]
[1760634873051,0.18402649,108680.0,108670.0,0.184041]
[1760634873260,0.27886649,108680.0,108660.0,0.24075352]
[1760634873474,0.30362857,108680.0,108670.0,0.18404343]
[1760634873689,0.27886649,108680.0,108670.0,0.18404343]
[1760634873902,0.30362857,108680.0,108670.0,0.18404343]
[1760634874117,0.11960208,108680.0,108670.0,0.18404343]
[1760634874317,0.30362857,108680.0,108660.0,0.31204691]
[1760634874541,0.03476208,108680.0,108670.0,0.18404343]
[1760634874757,0.02476208,108680.0,108670.0,0.18404343]
[1760634874969,0.05777593,108690.0,108680.0,0.18402649]
[1760634875170,0.02476208,108690.0,108680.0,0.18402649]
[1760634875798,0.05792622,108700.0,108690.0,0.18400956]
[1760634876007,0.05792622,108700.0,108690.0,0.17502883]
[1760634876209,0.00015029,108700.0,108690.0,0.19342978]
[1760634876401,0.00015029,108700.0,108690.0,0.18744264]
[1760634877017,0.00015029,108700.0,108690.0,0.77176882]
[1760634877159,0.00015029,108700.0,108690.0,1.09336787]
[1760634877360,0.00015029,108700.0,108690.0,0.25873181]
[1760634877767,0.02491237,108700.0,108690.0,0.25873181]
[1760634877966,0.20890501,108700.0,108690.0,0.25873181]
[1760634878150,0.20890501,108700.0,108670.0,1.14111839]
[1760634878359,0.20890501,108700.0,108680.0,0.18402277]
[1760634878587,0.02491237,108700.0,108690.0,0.18400956]
[1760634878793,0.30374501,108700.0,108690.0,0.18400956]
[1760634879388,0.30374501,108700.0,108690.0,0.16904049]
[1760634880046,0.30374501,108700.0,108690.0,0.18400956]
[1760634880265,0.02491237,108700.0,108690.0,0.18400956]
[1760634880471,0.11975237,108700.0,108690.0,0.18400956]
[1760634880671,0.30374501,108700.0,108690.0,0.18400956]
[1760634881186,0.09484,108700.0,108690.0,0.18400956]
[1760634881387,0.29865871,108700.0,108690.0,0.18400956]
[1760634881594,0.11466607,108700.0,108690.0,0.18400956]
[1760634881821,0.01982607,108700.0,108690.0,0.18400956]
[1760634882023,0.29865871,108700.0,108690.0,0.18400956]
[1760634882442,0.29865871,108700.0,108680.0,0.18402277]
[1760634882648,0.30865871,108700.0,108680.0,0.18402277]
[1760634882855,0.30865871,108700.0,108690.0,0.18400956]
[1760634883076,0.30865871,108700.0,108680.0,0.18402277]
[1760634883495,0.18402649,108680.0,108660.0,0.05657481]
[1760634883710,0.27886708,108680.0,108660.0,0.3303251]
[1760634883918,0.27886708,108680.0,108660.0,0.18406037]
[1760634884130,0.18401416,108690.0,108680.0,0.18402649]
[1760634884343,0.29868116,108690.0,108680.0,0.18402649]
[1760634884555,0.019827,108690.0,108680.0,0.18402649]
[1760634884768,0.09484,108700.0,108690.0,0.18399435]
[1760634884983,0.11466311,108700.0,108690.0,0.18399435]
[1760634885199,0.01982311,108700.0,108690.0,0.18399435]
[1760634885415,0.19315683,108720.0,108710.0,0.18397571]
[1760634885616,0.24466159,108720.0,108700.0,0.13797742]
[1760634885818,0.42862086,108720.0,108710.0,0.18397571]
[1760634886022,0.42862086,108720.0,108700.0,0.13797742]
[1760634886233,0.18397571,108710.0,108700.0,0.15637668]
[1760634886644,0.18397571,108710.0,108700.0,0.2023919]
[1760634886844,0.18397571,108710.0,108700.0,0.18399264]
[1760634887243,0.27879927,108720.0,108700.0,0.18399264]
[1760634887434,0.40862161,108720.0,108700.0,0.18399264]
[1760634888269,0.20484,108720.0,108710.0,0.18397571]
[1760634888473,0.38879879,108720.0,108700.0,0.18399264]
[1760634888675,0.18397571,108710.0,108700.0,0.18399264]
[1760634889290,0.27879879,108720.0,108700.0,0.18399264]
[1760634889500,0.41879879,108720.0,108700.0,0.18399264]
[1760634889702,0.32395879,108720.0,108700.0,0.18399264]
[1760634889918,0.41879879,108720.0,108700.0,0.18399264]
[1760634890530,0.18397571,108710.0,108700.0,0.18399264]
[1760634891171,0.09484,108720.0,108710.0,0.18397571]
[1760634891384,0.22484,108720.0,108710.0,0.18397571]
[1760634891586,0.13,108720.0,108710.0,0.18397571]
[1760634891728,0.22484,108720.0,108710.0,0.18397571]
[1760634892368,0.40879879,108720.0,108710.0,0.18397571]
[1760634892796,0.22484,108720.0,108710.0,0.18397571]
[1760634893240,0.22484,108720.0,108710.0,0.21286882]
[1760634893241,0.13,108720.0,108710.0,0.21286882]
[1760634893445,0.09585443,108730.0,108720.0,0.18395879]
[1760634893639,0.15585443,108730.0,108720.0,0.18395879]
[1760634893876,0.3397963,108730.0,108720.0,0.18395879]
[1760634895453,0.39415102,108730.0,108710.0,0.02889311]
[1760634895653,0.39415102,108730.0,108710.0,0.21286587]
[1760634895654,1.10732753,108730.0,108710.0,0.21286587]
[1760634895945,0.18395879,108720.0,108710.0,0.18397276]
[1760634896152,0.18397571,108710.0,108690.0,0.53319482]
[1760634896357,0.18395879,108720.0,108710.0,0.18397571]
[1760634896558,0.18395879,108720.0,108700.0,0.18399264]
[1760634896559,0.19395879,108720.0,108700.0,0.18399264]
[1760634896761,0.27881571,108710.0,108700.0,0.18399264]
[1760634897174,0.09484,108710.0,108700.0,0.18399264]
[1760634897387,0.18399264,108700.0,108690.0,0.21200182]
[1760634897586,0.09484,108710.0,108700.0,0.18399264]
[1760634897915,0.28881571,108710.0,108700.0,0.18399264]
[1760634898952,0.10484,108710.0,108700.0,0.18399264]
[1760634899283,0.28881571,108710.0,108700.0,0.18399264]
[1760634900349,0.18399264,108700.0,108690.0,0.18400939]
[1760634900554,0.09484,108710.0,108690.0,0.18400956]
[1760634900762,0.27881571,108710.0,108700.0,0.18399264]
[1760634900985,0.28881571,108710.0,108700.0,0.18399264]
[1760634901235,0.01,108710.0,108700.0,0.18399264]
[1760634901439,0.27881571,108710.0,108700.0,0.18399264]
[1760634901629,0.21301602,108720.0,108710.0,0.18397571]
[1760634901869,0.01985688,108720.0,108710.0,0.18397571]
[1760634902081,0.11570997,108730.0,108720.0,0.18395879]
[1760634902309,0.06101443,108730.0,108720.0,0.18395879]
[1760634902527,0.00101443,108730.0,108720.0,0.18395879]
[1760634903439,0.00101443,108730.0,108720.0,1.04118014]
[1760634903651,0.00101443,108730.0,108720.0,1.38118014]
[1760634904070,0.00101443,108730.0,108720.0,0.61364891]
[1760634904281,0.00101443,108730.0,108720.0,1.38118014]
[1760634905982,0.00101443,108730.0,108720.0,0.61364891]
[1760634906193,0.00101443,108730.0,108720.0,1.38118014]
[1760634906617,0.00101443,108730.0,108720.0,0.52395879]
[1760634906829,0.1849563,108730.0,108710.0,0.27877571]
[1760634907037,0.01101443,108730.0,108720.0,0.18395879]
[1760634907260,0.1849563,108730.0,108710.0,0.18449012]
[1760634907473,0.1849563,108730.0,108700.0,0.9607235]
[1760634907474,0.18395879,108720.0,108700.0,0.0948]
[1760634907692,0.18400956,108690.0,108680.0,0.02272773]
[1760634907925,0.0948,108690.0,108680.0,0.20725626]
[1760634908156,0.0948,108690.0,108680.0,0.18885953]
[1760634908380,0.01982864,108710.0,108700.0,0.18399264]
[1760634908587,0.0948,108720.0,108710.0,0.18396548]
[1760634908832,0.18397571,108710.0,108700.0,0.18399264]
[1760634909040,0.29858596,108720.0,108700.0,0.18399264]
[1760634909248,0.40858596,108720.0,108700.0,0.18399264]
[1760634909467,0.18397571,108710.0,108700.0,0.18399264]
[1760634909701,0.29858596,108720.0,108710.0,0.18397571]
[1760634909925,0.22462717,108720.0,108710.0,0.18397571]
[1760634910153,0.11,108720.0,108710.0,0.18397571]
[1760634910358,0.38875879,108720.0,108710.0,0.18397571]
[1760634910563,0.11,108720.0,108710.0,0.18397571]
[1760634910986,0.02084226,108730.0,108720.0,0.18395879]
[1760634910987,0.11564226,108730.0,108720.0,0.18395879]
[1760634911193,0.33478413,108730.0,108720.0,0.18395879]